bitfinex/quotes_BTCUSD_20260127
["timestamp","ask_amount","ask_price","bid_price","bid_amount"]
[1769534849812,0.02452177,87992.0,87963.0,0.02435353]
[1769534850042,0.02452177,87987.0,87965.0,0.01367615]
[1769534850193,0.11929815,87984.0,87965.0,0.01367615]
[1769534850397,0.14381992,87983.0,87965.0,0.01367615]
[1769534850724,0.11929815,87978.0,87958.0,0.14412]
[1769534850921,0.56730911,87980.0,87958.0,0.14412]
[1769534850922,0.02452177,87974.0,87958.0,0.14412]
[1769534851127,0.14381992,87973.0,87958.0,0.14412]
[1769534851359,0.05683661,87972.0,87958.0,0.14412]
[1769534851516,0.02452177,87973.0,87958.0,0.14412]
[1769534851717,0.08135771,87973.0,87958.0,0.14412]
[1769534851922,0.0246612,87973.0,87958.0,0.14412]
[1769534852638,0.0246612,87973.0,87958.0,0.158532]
[1769534852820,0.0246612,87973.0,87958.0,0.14412]
[1769534853721,0.38673554,88007.0,87963.0,0.12828297]
[1769534853937,0.05682965,87983.0,87966.0,0.02435353]
[1769534854138,0.02452177,87991.0,87967.0,0.1526365]
[1769534854363,0.11929815,87998.0,87967.0,0.01664521]
[1769534854561,0.02452177,87976.0,87963.0,0.00013943]
[1769534854971,0.05683164,87980.0,87963.0,0.00013943]
[1769534855140,0.17612888,87981.0,87963.0,0.00013943]
[1769534855454,0.11929815,87989.0,87963.0,0.00013943]
[1769534855650,0.05683109,87980.0,87963.0,0.00013943]
[1769534856006,0.02452177,87981.0,87963.0,0.00013943]
[1769534856204,0.05683172,87980.0,87963.0,0.00013943]
[1769534856425,0.05683059,87981.0,87963.0,0.00013943]
[1769534856832,0.02452177,87986.0,87963.0,0.00013943]
[1769534856987,0.02452177,87978.0,87963.0,0.00013943]
[1769534857167,0.11929815,87975.0,87963.0,0.00013943]
[1769534857369,0.14381992,87975.0,87963.0,0.00013943]
[1769534857955,0.20065425,87975.0,87963.0,0.00013943]
[1769534858659,0.14381992,87975.0,87963.0,0.00013943]
[1769534859102,0.11923198,87989.0,87965.0,0.02435353]
[1769534859306,0.11923198,87989.0,87964.0,0.01367615]
[1769534859307,0.01437538,87989.0,87975.0,0.13817258]
[1769534859528,0.40208811,88010.0,87975.0,0.00988961]
[1769534859726,0.33998411,88000.0,87979.0,0.01367615]
[1769534859950,0.0568215,87995.0,87976.0,0.02435353]
[1769534860262,0.05682312,87993.0,87977.0,0.01663127]
[1769534860430,0.05682312,87994.0,87977.0,0.01663127]
[1769534860631,0.05682272,87993.0,87977.0,0.01663127]
[1769534860824,0.33998411,88000.0,87978.0,0.02435353]
[1769534860825,0.05682557,87989.0,87978.0,0.02435353]
[1769534861025,0.11929815,87996.0,87969.0,0.02435353]
[1769534861448,0.11929815,87996.0,87971.0,0.02435353]
[1769534861788,0.86335176,88030.0,87982.0,0.02435353]
[1769534861789,0.01696395,88007.0,87982.0,0.02435353]
[1769534861953,0.11929815,88006.0,87982.0,0.02435353]
[1769534862161,0.05682011,87998.0,87982.0,0.02435353]
[1769534862380,0.05681877,88000.0,87982.0,0.02435353]
[1769534862634,0.39418258,88006.0,87982.0,0.02435353]
[1769534862635,0.05681804,88001.0,87982.0,0.02435353]
[1769534862808,0.05681917,87999.0,87983.0,0.12828297]
[1769534862987,0.05681917,87999.0,87984.0,0.02435353]
[1769534863190,0.11929815,88006.0,87984.0,0.02435353]
[1769534863401,0.04380361,88005.0,87984.0,0.02435353]
[1769534863708,0.11929815,88006.0,87984.0,0.02435353]
[1769534863915,0.33998411,88000.0,87984.0,0.02435353]
[1769534864145,0.45928226,88000.0,87971.0,0.12828297]
[1769534864347,0.05682192,87995.0,87974.0,0.02435353]
[1769534864552,0.45928226,88000.0,87976.0,0.02435353]
[1769534864834,0.05682326,87993.0,87976.0,0.02435353]
[1769534865191,0.05682274,87993.0,87976.0,0.02435353]
[1769534865395,0.33998411,88000.0,87976.0,0.1526365]
[1769534865587,0.33998411,88000.0,87977.0,0.04251426]
[1769534866404,0.33998411,88000.0,87978.0,0.02435353]
[1769534866601,0.11929815,88003.0,87980.0,0.02435353]
[1769534866798,0.01781789,88034.0,88004.0,0.12828297]
[1769534866799,0.01772325,88025.0,88004.0,0.12828297]
[1769534867043,0.0004,88027.0,88006.0,0.12828297]
[1769534867242,0.0004,88027.0,88007.0,0.02435353]
[1769534867608,0.0004,88027.0,88009.0,0.02435353]
[1769534868027,0.00053956,88027.0,88012.0,0.12828297]
[1769534868256,0.00053956,88027.0,88013.0,0.02435353]
[1769534868454,0.05680303,88024.0,87997.0,0.12828297]
[1769534868605,0.11929815,88026.0,87999.0,0.02435353]
[1769534869421,0.00630459,88027.0,87999.0,0.02435353]
[1769534869422,0.11929815,88019.0,87999.0,0.02435353]
[1769534869596,0.22723099,88017.0,87991.0,0.02435353]
[1769534869812,0.05680867,88015.0,87994.0,0.02435353]
[1769534870214,0.05680947,88014.0,87994.0,0.02435353]
[1769534870583,0.33998411,88020.0,87995.0,0.12828297]
[1769534870881,0.33998411,88020.0,87997.0,0.02435353]
[1769534871136,0.33998411,88020.0,87998.0,0.01692678]
[1769534871537,0.33998411,88020.0,87999.0,0.02435353]
[1769534871948,0.33998411,88020.0,87988.0,0.12828297]
[1769534872090,0.11929815,88019.0,87994.0,0.01367615]
[1769534872288,0.05680874,88015.0,87996.0,0.12828297]
[1769534872488,0.05680908,88016.0,87997.0,0.02435353]
[1769534872708,0.33998411,88020.0,87997.0,0.12828297]
[1769534872925,0.33998411,88020.0,87994.0,0.01367615]
[1769534872926,0.05680333,88023.0,88000.0,0.02435353]
[1769534873132,0.05680759,88017.0,88002.0,0.02435353]
[1769534873330,0.05680791,88016.0,88002.0,0.02435353]
[1769534873709,0.02402784,88027.0,87994.0,0.01367615]
[1769534873710,0.00053956,88027.0,88006.0,0.12828297]
[1769534873945,0.00053956,88027.0,88009.0,0.02435353]
[1769534874137,0.05680327,88024.0,88009.0,0.02426968]
[1769534874336,0.05680318,88024.0,88009.0,0.0212262]
[1769534874644,0.05680213,88025.0,88009.0,0.0181808]
[1769534874879,0.0568023,88025.0,88010.0,0.013122]
[1769534875087,0.00053956,88027.0,88010.0,0.00969039]
[1769534875332,0.00053956,88027.0,88010.0,0.00625635]
[1769534875530,0.00053956,88027.0,88009.0,0.01627627]
[1769534875742,0.00053956,88027.0,88008.0,0.12828297]
[1769534875958,0.12038064,88026.0,88003.0,0.02446215]
[1769534876122,0.12038064,88019.0,87986.0,0.09604]
[1769534876322,0.36308093,88020.0,87999.0,0.01367615]
[1769534876323,0.04834616,88018.0,87999.0,0.01367615]
[1769534876532,0.48346157,88020.0,87999.0,0.01367615]
[1769534876732,0.02309682,88020.0,87997.0,0.11710417]
[1769534876912,0.00053956,88027.0,88000.0,0.02446215]
[1769534877107,0.00053956,88027.0,87995.0,0.01367615]
[1769534877108,0.05680593,88019.0,88003.0,0.11710417]
[1769534877435,0.05680593,88019.0,88004.0,0.02446215]
[1769534877661,0.05680641,88020.0,88005.0,0.01415663]
[1769534877858,0.00053956,88027.0,88005.0,0.01033553]
[1769534878116,0.02363638,88027.0,88006.0,0.11710417]
[1769534878306,0.00053956,88027.0,88008.0,0.11557401]
[1769534878458,0.33998411,88020.0,87997.0,0.14156632]
[1769534878667,0.14347746,88019.0,88002.0,0.01367615]
[1769534878886,0.12038064,88019.0,87998.0,0.01367615]
[1769534879091,0.02309682,88016.0,87993.0,0.01367615]
[1769534879294,0.14347746,88015.0,87993.0,0.01367615]
[1769534879501,0.14347746,88015.0,87990.0,0.02446215]
[1769534879502,0.12038064,88009.0,87990.0,0.02446215]
[1769534879839,0.20029138,88007.0,87983.0,0.11710417]
[1769534880159,0.14347746,88007.0,87983.0,0.11710417]
[1769534880362,0.12038064,87999.0,87974.0,0.02446215]
[1769534880561,0.14347746,87999.0,87980.0,0.01367615]
[1769534880780,0.33998411,87990.0,87968.0,0.0003103]
[1769534880978,0.33998411,87980.0,87968.0,0.0003103]
[1769534881180,0.36308093,87980.0,87968.0,0.0003103]
[1769534882018,0.07992822,87980.0,87968.0,0.0003103]
[1769534882226,0.02309682,87980.0,87968.0,0.0003103]
[1769534882657,0.02309682,87989.0,87968.0,0.0003103]
[1769534882871,0.01797856,87988.0,87968.0,0.0003103]
[1769534883091,0.02309682,87987.0,87968.0,0.0003103]
[1769534883299,0.12038064,87987.0,87968.0,0.0003103]
[1769534883591,0.05683028,87982.0,87968.0,0.0003103]
[1769534883796,0.05683112,87980.0,87968.0,0.0003103]
[1769534884403,0.02309682,87986.0,87968.0,0.0003103]
[1769534884618,0.05683502,87974.0,87968.0,0.0003103]
[1769534885042,0.0568334,87977.0,87968.0,0.0003103]
[1769534885283,0.05683174,87979.0,87974.0,0.00988961]
[1769534885484,0.05683013,87982.0,87968.0,0.0003103]
[1769534885639,0.02309682,87984.0,87968.0,0.0003103]
[1769534885640,0.05683294,87978.0,87968.0,0.0003103]
[1769534885816,0.05683142,87980.0,87968.0,0.0003103]
[1769534886001,0.0568302,87982.0,87968.0,0.0003103]
[1769534886202,0.05682951,87983.0,87968.0,0.0003103]
[1769534886447,0.02309682,87984.0,87968.0,0.0003103]
[1769534886653,0.05682916,87983.0,87968.0,0.0003103]
[1769534886891,0.07992541,87984.0,87968.0,0.0003103]
[1769534887089,0.02309682,87998.0,87970.0,0.02446215]
[1769534887296,0.02309682,87998.0,87973.0,0.11710417]
[1769534887457,0.393222,87993.0,87973.0,0.11710417]
[1769534887653,0.05682378,87992.0,87973.0,0.11710417]
[1769534887900,0.11676,88003.0,87968.0,0.0003103]
[1769534887901,0.05682992,87982.0,87968.0,0.0003103]
[1769534888201,0.00568299,87982.0,87968.0,0.0003103]
[1769534888367,0.05683018,87982.0,87968.0,0.0003103]
[1769534888573,0.14347746,87983.0,87968.0,0.0003103]
[1769534888731,0.0568339,87976.0,87968.0,0.0003103]
[1769534888945,0.05683274,87978.0,87954.0,0.11710417]
[1769534889182,0.05683319,87977.0,87958.0,0.13078032]
[1769534889379,0.05683433,87975.0,87959.0,0.01557076]
[1769534889580,0.05683433,87975.0,87958.0,0.11710417]
[1769534889781,0.05683365,87977.0,87958.0,0.11710417]
[1769534890180,0.02309682,87979.0,87958.0,0.11710417]
[1769534890382,0.33996926,87980.0,87954.0,0.00046509]
[1769534890383,0.02309682,87978.0,87954.0,0.00046509]
[1769534890580,0.30684753,87992.0,87954.0,0.00046509]
[1769534890581,0.36306608,87970.0,87954.0,0.00046509]
[1769534890782,0.02579818,87977.0,87955.0,0.11710417]
[1769534891181,0.02309682,87977.0,87955.0,0.11710417]
[1769534891384,0.02309682,87985.0,87958.0,0.02446215]
[1769534891583,0.33996926,88000.0,87961.0,0.11710417]
[1769534891584,0.72557839,87993.0,87961.0,0.11710417]
[1769534891903,0.02309682,87990.0,87965.0,0.11710417]
[1769534892078,0.0568253,87989.0,87967.0,0.11710417]
[1769534892279,0.02383166,87988.0,87967.0,0.11710417]
[1769534892546,0.02309682,87987.0,87967.0,0.11710417]
[1769534893165,0.02309682,87997.0,87971.0,0.11710417]
[1769534893287,0.392729,87993.0,87973.0,0.11710417]
[1769534893496,0.05682525,87990.0,87973.0,0.11710417]
[1769534893724,0.0568248,87990.0,87972.0,0.02446215]
[1769534893929,0.05682545,87989.0,87972.0,0.02446215]
[1769534894127,0.05682572,87989.0,87972.0,0.02446215]
[1769534894392,0.02309682,87992.0,87972.0,0.14156632]
[1769534895205,0.02309682,87992.0,87972.0,0.11710417]
[1769534895742,0.0568263,87988.0,87972.0,0.11710417]
[1769534896299,0.05682756,87986.0,87972.0,0.11710417]
[1769534896501,0.05682816,87985.0,87972.0,0.11710417]
[1769534896701,0.02309682,87992.0,87972.0,0.11710417]
[1769534897597,0.02309682,87995.0,87972.0,0.11710417]
[1769534897789,0.0568256,87989.0,87972.0,0.14156632]
[1769534898559,0.02309682,87995.0,87972.0,0.14156632]
[1769534898767,0.00164127,87972.0,87956.0,0.11710417]
[1769534899088,0.00164127,87972.0,87955.0,0.02446215]
[1769534899089,0.12202191,87972.0,87955.0,0.02446215]
[1769534899468,0.12202191,87972.0,87955.0,0.14156632]
[1769534899677,0.00164127,87972.0,87956.0,0.01420314]
[1769534899880,0.00164127,87972.0,87956.0,0.11710417]
[1769534900081,0.02309682,87974.0,87956.0,0.14156632]
[1769534900428,0.02309682,87981.0,87959.0,0.02446215]
[1769534900625,0.12038064,87986.0,87963.0,0.02446215]
[1769534900837,0.22728746,87995.0,87967.0,0.02446215]
[1769534901038,0.0689515,87994.0,87970.0,0.11633856]
[1769534901220,0.0689515,87994.0,87972.0,0.11595544]
[1769534901395,0.12038064,87997.0,87973.0,0.01797573]
[1769534901596,0.40359675,88000.0,87973.0,0.01797573]
[1769534901597,0.02309682,87994.0,87973.0,0.0149093]
[1769534901801,0.02309682,87992.0,87973.0,0.01145654]
[1769534902025,0.05682399,87991.0,87974.0,0.10530257]
[1769534902265,0.34765832,87999.0,87975.0,0.02446215]
[1769534902266,0.05682544,87989.0,87975.0,0.02446215]
[1769534902422,0.05682632,87988.0,87976.0,0.13814432]
[1769534902635,0.05682632,87988.0,87977.0,0.00697043]
[1769534902992,0.05682544,87989.0,87977.0,0.00697043]
[1769534903160,0.02387587,88005.0,87960.0,0.12645033]
[1769534903375,0.02387587,88005.0,87974.0,0.02417804]
[1769534903691,0.45676926,88010.0,87954.0,0.05731291]
[1769534903692,0.02387587,87988.0,87958.0,0.12645033]
[1769534903822,0.02387587,87986.0,87969.0,0.01367615]
[1769534904272,0.05682741,87986.0,87969.0,0.12645033]
[1769534904462,0.02447781,87985.0,87969.0,0.12491169]
[1769534904663,0.02447781,87985.0,87969.0,0.12414235]
[1769534905100,0.33996926,87980.0,87954.0,0.00046509]
[1769534905265,0.01367615,88009.0,87954.0,0.00046509]
[1769534905266,0.00164127,87969.0,87954.0,0.00046509]
[1769534905471,0.02447781,87967.0,87954.0,0.00046509]
[1769534905868,0.0813176,87967.0,87954.0,0.00046509]
[1769534906059,0.02447781,87981.0,87955.0,0.12205582]
[1769534906253,0.0636078,87988.0,87958.0,0.12205582]
[1769534906254,0.02447781,87983.0,87958.0,0.12205582]
[1769534906459,0.05683657,87972.0,87958.0,0.12205582]
[1769534906825,0.05683632,87972.0,87958.0,0.12205582]
[1769534907022,0.33996926,87980.0,87958.0,0.12205582]
[1769534907180,0.05683871,87969.0,87958.0,0.12205582]
[1769534907379,0.02447781,87977.0,87958.0,0.12205582]
[1769534907810,0.11628096,87969.0,87954.0,0.00046509]
[1769534908046,0.02611908,87958.0,87943.0,0.12205582]
[1769534908222,0.02658409,87958.0,87943.0,0.12205582]
[1769534908421,0.02494282,87958.0,87943.0,0.12205582]
[1769534908624,0.02494282,87958.0,87942.0,0.000335]
[1769534908625,0.00046501,87958.0,87945.0,0.12205582]
[1769534908800,0.00046501,87958.0,87946.0,0.13663008]
[1769534909604,0.00046501,87958.0,87950.0,0.01367615]
[1769534909801,0.14075877,87965.0,87946.0,0.01457426]
[1769534910064,0.14075877,87965.0,87946.0,0.01503927]
[1769534910481,0.14075877,87965.0,87946.0,0.02871542]
[1769534910653,0.14075877,87965.0,87947.0,0.01693817]
[1769534910862,0.05684239,87963.0,87947.0,0.13899399]
[1769534911108,0.05684276,87962.0,87947.0,0.13899399]
[1769534911446,0.05684512,87959.0,87947.0,0.13899399]
[1769534911673,0.22228493,88014.0,87947.0,0.13899399]
[1769534911674,0.33996926,87960.0,87947.0,0.12205582]
[1769534911898,0.02447781,87957.0,87946.0,0.00046501]
[1769534912783,0.0568471,87956.0,87946.0,0.00046501]
[1769534913398,0.02447781,87957.0,87946.0,0.00046501]
[1769534914915,0.11628096,87955.0,87946.0,0.00046501]
[1769534915113,0.02447781,87952.0,87946.0,0.00046501]
[1769534915381,0.02447781,87951.0,87946.0,0.00046501]
[1769534915940,0.02447781,87949.0,87946.0,1.9e-07]
[1769534917353,0.02447781,87972.0,87950.0,0.12205582]
[1769534917504,0.11628096,87970.0,87950.0,0.13821267]
[1769534917704,0.11628096,87970.0,87950.0,0.12963375]
[1769534917908,0.14075877,87970.0,87950.0,0.11293775]
[1769534918113,0.05684175,87964.0,87950.0,0.09957909]
[1769534918360,0.05684175,87964.0,87950.0,0.08454755]
[1769534918549,0.05684175,87964.0,87950.0,0.06951286]
[1769534918751,0.16671557,88000.0,87964.0,0.00789372]
[1769534918962,0.05683683,87972.0,87958.0,0.02335179]
[1769534919114,0.02447781,87977.0,87958.0,0.01499539]
[1769534919466,0.02447781,87974.0,87956.0,0.12205582]
[1769534919702,0.02447781,87974.0,87956.0,0.13157616]
[1769534919877,0.02447781,87974.0,87956.0,0.11953559]
[1769534920080,0.02447781,87974.0,87956.0,0.10387419]
[1769534920305,0.05683814,87970.0,87956.0,0.08375505]
[1769534920474,0.05683814,87970.0,87956.0,0.07771644]
[1769534920688,0.05683814,87970.0,87956.0,0.05959197]
[1769534920861,0.05683984,87967.0,87956.0,0.02489771]
[1769534921063,0.05683984,87967.0,87956.0,0.01078074]
[1769534921274,0.02447781,87973.0,87954.0,0.02335179]
[1769534921459,0.14075877,87973.0,87954.0,0.02335179]
[1769534921660,0.14075877,87973.0,87954.0,0.14540761]
[1769534921992,0.14075877,87973.0,87955.0,0.01454076]
[1769534922477,0.14075877,87973.0,87955.0,0.12205582]
[1769534923102,0.14075877,87973.0,87955.0,0.11271751]
[1769534923285,0.05683735,87971.0,87955.0,0.08936504]
[1769534923503,0.17311831,87971.0,87955.0,0.08469292]
[1769534923665,0.11628096,87971.0,87955.0,0.08469292]
[1769534924107,0.33416913,87992.0,87955.0,0.08469292]
[1769534924108,0.11628096,87998.0,87960.0,0.12205582]
[1769534924281,0.0568266,87987.0,87963.0,0.02335179]
[1769534924482,0.3988824,88007.0,87956.0,0.01367615]
[1769534924483,0.06332042,87998.0,87966.0,0.12205582]
[1769534924685,0.06332042,87998.0,87957.0,0.1168]
[1769534924686,0.11628096,87997.0,87974.0,0.12205582]
[1769534925001,0.14075877,87995.0,87975.0,0.02335179]
[1769534925203,0.05682612,87988.0,87975.0,0.02335179]
[1769534925403,0.05682578,87989.0,87975.0,0.02335179]
[1769534925700,0.14075877,87991.0,87975.0,0.02335179]
[1769534925908,0.14122406,87991.0,87975.0,0.02335179]
[1769534926261,0.14122406,87991.0,87971.0,1e-08]
[1769534926484,0.14122406,87991.0,87972.0,0.12205582]
[1769534926711,0.02447781,87990.0,87957.0,0.08220644]
[1769534926953,0.11628096,87989.0,87963.0,0.01367615]
[1769534927158,0.0568335,87977.0,87963.0,0.01367615]
[1769534927363,0.05683256,87978.0,87963.0,0.01367615]
[1769534927574,0.02447781,87980.0,87964.0,0.12205582]
[1769534927985,0.02447781,87980.0,87964.0,0.14540761]
[1769534928205,0.14075877,87986.0,87965.0,0.02335179]
[1769534928408,0.14075877,87986.0,87966.0,0.12205582]
[1769534928616,0.14075877,87986.0,87968.0,0.14540761]
[1769534928832,0.11628096,87977.0,87957.0,0.02335179]
[1769534929046,0.05683629,87972.0,87955.0,0.12205582]
[1769534929246,0.02447781,87972.0,87956.0,0.01367615]
[1769534929454,0.02447781,87972.0,87956.0,0.13573197]
[1769534930090,0.11628096,87976.0,87956.0,0.13573197]
[1769534930264,0.11628096,87986.0,87959.0,0.02335179]
[1769534930408,0.02447781,87983.0,87962.0,0.12205582]
[1769534930610,0.02447781,87979.0,87943.0,0.12205582]
[1769534930889,0.02447781,87979.0,87942.0,0.056495]
[1769534930890,0.02447781,87977.0,87957.0,0.12205582]
[1769534931092,0.02447781,87976.0,87957.0,0.15164035]
[1769534931370,0.05683274,87978.0,87960.0,0.02335179]
[1769534931567,0.05683274,87978.0,87961.0,0.12205582]
[1769534932349,0.02447781,87979.0,87961.0,0.12205582]
[1769534932931,0.14075877,87989.0,87963.0,0.12205582]
[1769534933133,0.11628096,87987.0,87964.0,0.13138361]
[1769534933316,0.02447781,87984.0,87964.0,0.12205582]
[1769534933546,0.02447781,87982.0,87964.0,0.108952]
[1769534933719,0.02447781,87981.0,87964.0,0.0980294]
[1769534933920,0.02447781,87981.0,87964.0,0.08272432]
[1769534934136,0.02447781,87981.0,87964.0,0.0805374]
[1769534934282,0.02447781,87981.0,87964.0,0.06571055]
[1769534934510,0.02447781,87981.0,87964.0,0.05625364]
[1769534934700,0.02447781,87981.0,87964.0,0.04830906]
[1769534934929,0.11592832,87981.0,87964.0,0.03440347]
[1769534935130,0.02407654,87980.0,87964.0,0.03440347]
[1769534935490,0.02407654,87979.0,87964.0,0.03440347]
[1769534935805,0.02407654,87988.0,87964.0,0.03440347]
[1769534936124,0.11592832,87983.0,87964.0,0.03440347]
[1769534936318,0.14000486,87982.0,87964.0,0.03440347]
[1769534937246,0.28224784,87990.0,87965.0,0.02480928]
[1769534937247,0.02407654,87990.0,87965.0,0.02480928]
[1769534937400,0.22731111,87986.0,87969.0,0.02480928]
[1769534937606,0.11592832,87989.0,87969.0,0.01424005]
[1769534937794,0.05682964,87983.0,87968.0,0.12373021]
[1769534937995,0.05682993,87982.0,87968.0,0.12373021]
[1769534938416,0.05682964,87983.0,87968.0,0.01485395]
[1769534938621,0.05682964,87983.0,87969.0,0.12373021]
[1769534938823,0.02407654,87985.0,87969.0,0.10921343]
[1769534939125,0.02407654,87985.0,87969.0,0.10619287]
[1769534940242,0.1470486,88015.0,87945.0,0.13740636]
[1769534940243,0.11592832,87979.0,87945.0,0.13740636]
[1769534940592,0.33996926,87980.0,87948.0,0.02181843]
[1769534940593,0.02407654,87968.0,87948.0,0.02181843]
[1769534940804,0.02376093,87968.0,87949.0,0.12373021]
[1769534941010,0.02376093,87968.0,87949.0,0.14586425]
[1769534942039,0.02376093,87968.0,87946.0,0.12373021]
[1769534942289,0.02376093,87968.0,87948.0,0.12373021]
[1769534942502,0.33996926,87980.0,87948.0,0.12373021]
[1769534942715,0.02407654,87977.0,87951.0,0.01763734]
[1769534942932,0.02407654,87977.0,87960.0,0.01367615]
[1769534943139,0.0568311,87980.0,87962.0,0.01763734]
[1769534943374,0.08090736,87981.0,87963.0,0.11378754]
[1769534943596,0.02407654,87980.0,87963.0,0.11403914]
[1769534943805,0.11592832,87984.0,87963.0,0.00794945]
[1769534944005,0.42364336,87993.0,87960.0,0.12373021]
[1769534944006,0.02407654,87981.0,87960.0,0.12373021]
[1769534944163,0.02407654,87979.0,87960.0,0.11179816]
[1769534944357,0.02407654,87979.0,87961.0,0.00572103]
[1769534944564,0.02407654,87979.0,87960.0,0.1098094]
[1769534944771,0.02407654,87979.0,87961.0,0.01214817]
[1769534944973,0.02407654,87979.0,87945.0,0.01367615]
[1769534944974,0.02407654,87979.0,87957.0,0.1354025]
[1769534945190,0.02407654,87979.0,87960.0,0.13740636]
[1769534945599,0.11592832,87978.0,87960.0,0.12373021]
[1769534945801,0.42364336,87993.0,87946.0,0.12373021]
[1769534945802,0.02407654,87968.0,87946.0,0.12373021]
[1769534946006,0.02407654,87968.0,87946.0,0.1354025]
[1769534946206,0.02407654,87968.0,87948.0,0.12373021]
[1769534946410,0.02407654,87968.0,87950.0,0.1354025]
[1769534947808,0.02407654,87968.0,87950.0,0.12373021]
[1769534948032,0.02407654,87966.0,87950.0,0.12373021]
[1769534948472,0.02407654,87966.0,87951.0,0.01367615]
[1769534948683,0.11592832,87978.0,87954.0,0.12373021]
[1769534948880,0.11592832,87977.0,87954.0,0.12373021]
[1769534949119,0.02407654,87976.0,87954.0,0.12373021]
[1769534949315,0.02407654,87975.0,87954.0,0.12373021]
[1769534949517,0.02407654,87975.0,87958.0,0.12373021]
[1769534949953,0.11592832,87975.0,87958.0,0.12373021]
[1769534950246,0.02407654,87974.0,87958.0,0.12373021]
[1769534950642,0.02407654,87973.0,87958.0,0.12373021]
[1769534950843,0.0809132,87972.0,87958.0,0.12373021]
[1769534951102,0.08091394,87971.0,87958.0,0.12373021]
[1769534951430,0.02407654,87990.0,87967.0,0.12373021]
[1769534951639,0.02407654,87986.0,87967.0,0.12373021]
[1769534951852,0.33985959,88000.0,87967.0,0.12373021]
[1769534951853,0.02407654,87984.0,87967.0,0.12373021]
[1769534952300,0.11639361,87991.0,87967.0,0.12373021]
[1769534952530,0.14047015,87991.0,87971.0,0.12373021]
[1769534952736,0.14047015,87991.0,87973.0,0.13989925]
[1769534953407,0.11592832,87998.0,87973.0,0.13989925]
[1769534953636,0.02407654,87995.0,87973.0,0.13989925]
[1769534953945,0.02407654,87986.0,87963.0,0.12373021]
[1769534954238,0.02407654,87984.0,87969.0,0.01367615]
[1769534954398,0.11592832,87997.0,87969.0,0.13740636]
[1769534954605,0.02407654,87994.0,87971.0,0.13989925]
[1769534954800,7.4e-05,87998.0,87972.0,0.13908775]
[1769534954801,0.02407654,87992.0,87972.0,0.13908775]
[1769534955007,0.11592832,87992.0,87972.0,0.13908775]
[1769534955223,0.02407654,87991.0,87972.0,0.13908775]
[1769534955803,0.02407654,87991.0,87972.0,0.03152658]
[1769534956003,0.02407654,87991.0,87973.0,0.12373021]
[1769534956449,0.06187588,87998.0,87972.0,0.01616904]
[1769534956450,0.11592832,87989.0,87972.0,0.01616904]
[1769534956651,0.02407654,87986.0,87968.0,0.01367615]
[1769534956869,0.02407654,87984.0,87969.0,0.12373021]
[1769534957872,0.11592832,87982.0,87960.0,0.13989925]
[1769534958068,0.02407654,87981.0,87967.0,0.01367615]
[1769534958530,0.02407654,87981.0,87966.0,0.01367615]
[1769534959021,0.02407654,87980.0,87966.0,0.01367615]
[1769534959801,0.11592832,87978.0,87960.0,0.13989925]
[1769534960145,0.11592832,87976.0,87960.0,0.12373021]
[1769534960342,0.02407654,87975.0,87960.0,0.12373021]
[1769534961599,0.02407654,87975.0,87959.0,0.0002169]
[1769534961829,0.02407654,87974.0,87959.0,0.0002169]
[1769534961994,0.02407654,87973.0,87959.0,0.0002169]
[1769534962350,0.11592832,87972.0,87959.0,0.0002169]
[1769534962564,0.11592832,87968.0,87959.0,0.0002169]
[1769534962778,0.02407654,87967.0,87959.0,0.0002169]
[1769534963386,0.02295999,87963.0,87959.0,0.0002169]
[1769534963595,0.02295999,87961.0,87959.0,0.0002169]
[1769534963826,0.02295999,87961.0,87959.0,0.00068219]
[1769534964023,0.02295999,87968.0,87959.0,0.00068219]
[1769534965060,0.13447543,87979.0,87959.0,0.00068219]
[1769534965262,0.13447543,87976.0,87959.0,0.00068219]
[1769534965417,0.02447972,87973.0,87959.0,0.00068219]
[1769534965622,0.02447972,87970.0,87959.0,0.00068219]
[1769534966339,0.02447972,87969.0,87959.0,0.00068219]
[1769534968518,0.13447543,87968.0,87959.0,0.00068219]
[1769534968755,0.05643034,88033.0,87959.0,0.00068219]
[1769534968756,0.15895515,87966.0,87959.0,0.00068219]
[1769534970188,0.13447543,87966.0,87959.0,0.00068219]
[1769534970390,0.02447972,87965.0,87959.0,0.00068219]
[1769534970792,0.00674813,87978.0,87959.0,0.00068219]
[1769534971088,0.21579439,87968.0,87959.0,0.00068219]
[1769534971289,0.02447972,87967.0,87959.0,0.00068219]
[1769534971499,0.00674813,87978.0,87959.0,0.00068219]
[1769534971500,0.13447543,87972.0,87959.0,0.00068219]
[1769534972121,0.13447543,87981.0,87959.0,0.00068219]
[1769534972294,0.13447543,87977.0,87959.0,0.00068219]
[1769534972511,0.13447543,87975.0,87959.0,0.00068219]
[1769534973700,0.27195686,87970.0,87959.0,0.00068219]
[1769534974634,0.13447543,87969.0,87959.0,0.00068219]
[1769534974812,0.13447543,87969.0,87956.0,0.00079784]
[1769534975014,0.13447543,87969.0,87952.0,0.02732]
[1769534975015,0.27195686,87966.0,87952.0,0.02732]
[1769534975217,0.27195686,87962.0,87953.0,0.01751558]
[1769534975554,0.27195686,87962.0,87952.0,0.02732]
[1769534978974,0.13447543,87961.0,87952.0,0.02732]
[1769534979568,0.29643658,87962.0,87952.0,0.02732]
[1769534979765,0.29643658,87962.0,87952.0,0.01866311]
[1769534980071,0.29643658,87962.0,87945.0,0.02459346]
[1769534980294,0.08178352,87969.0,87949.0,0.02459346]
[1769534980513,0.02494473,87969.0,87951.0,0.02459346]
[1769534980722,0.02494473,87969.0,87952.0,0.02459346]
[1769534980956,0.02494473,87969.0,87952.0,0.14515353]
[1769534981163,0.02494473,87969.0,87952.0,0.13616587]
[1769534981375,0.02494473,87969.0,87952.0,0.12249468]
[1769534981582,0.03600204,87968.0,87952.0,0.11702618]
[1769534981786,0.03600204,87968.0,87952.0,0.10335436]
[1769534983207,0.02494473,87969.0,87952.0,0.10335436]
[1769534983410,0.02447972,87968.0,87952.0,0.10335436]
[1769534984525,0.02447972,87968.0,87952.0,0.06780668]
[1769534985288,0.00046501,87969.0,87954.0,0.12304245]
[1769534985443,0.00046501,87969.0,87956.0,0.11210323]
[1769534985643,0.00046501,87969.0,87958.0,0.14763591]
[1769534985868,0.00046501,87969.0,87958.0,0.14615426]
[1769534986166,0.00046501,87969.0,87958.0,0.11350587]
[1769534986344,0.00046501,87969.0,87958.0,0.09943984]
[1769534993306,0.01,87958.0,87948.0,0.02459346]
[1769534993733,0.13447543,87964.0,87948.0,0.02459346]
[1769534993972,0.13447543,87964.0,87948.0,0.14763591]
[1769534995742,0.19578416,87964.0,87948.0,0.14763591]
[1769534996672,0.02447972,87967.0,87948.0,0.12304245]
[1769534996673,0.02334854,87967.0,87948.0,0.12304245]
[1769534997274,0.02334854,87967.0,87948.0,0.14717165]
[1769534997494,0.02334854,87967.0,87950.0,0.14007272]
[1769534998329,0.02334854,87967.0,87950.0,0.16420192]
[1769534999184,0.1389479,87949.0,87935.0,0.0001999]
[1769535000353,0.16086231,87949.0,87935.0,0.0001999]
[1769535000562,0.02334854,87946.0,87935.0,0.0001999]
[1769535000817,0.02334854,87945.0,87935.0,0.0001999]
[1769535001446,0.1389479,87959.0,87935.0,0.14027262]
[1769535001651,0.02334854,87956.0,87935.0,0.14027262]